Cogmind - Beta 16 @@@ ROGUE MODE // 2025.12.19 @ 18:41:27 Player: Mozco Result: Destroyed by B-75 Beast with Magnetic Acceleration Cannon Performance ------------- Evolutions (3) 1500 Regions Visited (10) 2000 Robots Destroyed (84) 420 Value Destroyed (2472) 2472 Prototype IDs (50) 1000 Alien Tech Used (0) 0 Bonus (673) 673 TOTAL SCORE: 8065 Bonus ------- High Alert Combat Kills 15 Follower Combat Kills 92 Aligned with FarCom 300 Met Data Miner 300 Friendly Fire -34 Cogmind --------- Core Integrity 0/700 Matter 214/300 Energy 23/100 System Corruption 18% Temperature Warm (126) Movement Core (700) Ox13 Location -6/Proximity Caves Parts ------- > --- POWER (1) -------- (None) > --- PROPULSION (6) --- (None) > --- UTILITY (4) ------ High-capacity Storage Unit > --- WEAPON (2) ------- (None) > --- INVENTORY (20) --- Improved Cooling System High-capacity Matter Pod (200) Kinecellerator Reactive Plating Graphene Brace Supersonic Drone Bay (1/1) Proton Missile Launcher Proton Missile Launcher Rocket Launcher Long-range Missile Launcher Plasma Cutter Peak State ------------ > --- POWER ------------ Nuclear Core > --- PROPULSION ------- Light Treads Armored Treads Armored Treads Armored Treads > --- UTILITY ---------- High-capacity Storage Unit Active Sensor Suite > --- WEAPON ----------- Improved EM Shotgun Improved EM Shotgun > --- INVENTORY -------- Nuclear Core Light Treads Light Treads Armored Treads Cooling System Cooling System High-capacity Matter Pod Hardened Light Armor Plating Hardened Light Armor Plating Reactive Plating Reactive Plating Reactive Plating Graphene Brace Supersonic Drone Bay Improved EM Shotgun Beam Cannon EMP Blaster Rocket Launcher Rocket Launcher Plasma Cutter [Rating: 52] Favorites ----------- Power Improved Ion Engine Engine Improved Ion Engine Power Core Nuclear Core Propulsion Light Treads Treads Light Treads Utility High-capacity Storage Unit Device Cooling System Storage High-capacity Storage Unit Processor Improved Signal Interpreter Protection Improved Medium Armor Plating Weapon Beam Cannon Energy Gun Improved EM Shotgun Energy Cannon Beam Cannon Ballistic Gun Light Assault Rifle Ballistic Cannon Heavy Assault Cannon Launcher Rocket Launcher Special Melee Weapon Datajack Build | -11 -10 -10 -10 -9 -8 -7 -7 -7 -7 -6 ------- Run | Yrd Mat Min Exi Min Mat Fac Low Low Dat Pro Slots Evolved 6 | . . . . . 4 2 . . . . Power . | . . . . . . . . . . . Propulsion 4 | . . . . . 2 2 . . . . Utility 2 | . . . . . 2 . . . . . Weapon . | . . . . . . . . . . . Parts Attached 62 | 8 11 . 2 1 22 8 5 4 . 1 Power 8 | 1 1 . . . 2 3 . 1 . . Engine 5 | 1 1 . . . . 2 . 1 . . Core 3 | . . . . . 2 1 . . . . Reactor . | . . . . . . . . . . . Propulsion 13 | 2 2 . . . 7 1 . 1 . . Treads 13 | 2 2 . . . 7 1 . 1 . . Leg . | . . . . . . . . . . . Wheel . | . . . . . . . . . . . Hover . | . . . . . . . . . . . Flight . | . . . . . . . . . . . Utility 22 | 2 2 . 1 . 10 4 3 . . . Device 6 | 1 1 . . . 2 1 1 . . . Storage 3 | 1 1 . 1 . . . . . . . Processor 1 | . . . . . . 1 . . . . Hackware . | . . . . . . . . . . . Protection 12 | . . . . . 8 2 2 . . . Artifact . | . . . . . . . . . . . Weapon 19 | 3 6 . 1 1 3 . 2 2 . 1 Energy Gun 5 | . 2 . . . 1 . 1 1 . . Energy Cannon 5 | . 3 . . . . . 1 1 . . Ballistic Gun 4 | 3 . . . . . . . . . 1 Ballistic Cannon 1 | . . . . . 1 . . . . . Launcher 3 | . 1 . . 1 1 . . . . . Special Weapon . | . . . . . . . . . . . Impact Weapon . | . . . . . . . . . . . Slashing Weapon . | . . . . . . . . . . . Piercing Weapon . | . . . . . . . . . . . Special Melee Weapon 1 | . . . 1 . . . . . . . Unidentified Prototypes 3 | . 1 . . . 1 1 . . . . Corrupted Parts 7 | . . . . . 7 . . . . . System Corruption 36 | . . . . . 36 . . . . . Parts Lost 28 | . . . . . 6 . 1 11 . 10 Power 3 | . . . . . 1 . . 1 . 1 Propulsion 10 | . . . . . 2 . . 7 . 1 Utility 8 | . . . . . 2 . . 3 . 3 Weapon 7 | . . . . . 1 . 1 . . 5 Highest Loss Streak 10 | . . . . . 5 . 1 5 . 10 To Critical Strikes 1 | . . . . . . . . 1 . . Average Backups 16 | . 11 15 15 16 19 19 19 17 15 14 Power . | . . 1 1 1 1 1 1 . . . Propulsion 2 | . 2 4 4 4 2 1 1 . . . Utility 5 | . 1 2 2 4 8 8 9 8 7 6 Weapon 6 | . 5 6 6 6 5 7 7 7 7 6 Tool/Special . | . . . . . . . . . . . Unused Backups 12 | . . . . . 1 3 . . . 8 Power 2 | . . . . . 1 1 . . . . Propulsion . | . . . . . . . . . . . Utility 6 | . . . . . . 2 . . . 4 Weapon 3 | . . . . . . . . . . 3 Tool/Special 1 | . . . . . . . . . . 1 Average Slot Usage (%) 91 | . 100 100 100 100 95 84 95 70 32 44 Engine 9 | . 14 14 14 14 1 1 7 6 7 4 Core 1 | . . . . . 7 5 . . . . Treads 31 | . 28 28 28 28 33 45 46 25 7 4 Device 9 | . 14 14 14 14 9 5 2 7 7 4 Storage 10 | . 14 14 14 14 9 7 7 7 7 7 Protection 6 | . . . . . 16 9 19 7 . 6 Energy Gun 3 | . 4 14 1 . 12 . 2 4 . 2 Energy Cannon 11 | . 16 14 14 23 2 . 2 10 1 10 Ballistic Cannon 1 | . . . . . . 7 4 . . . Launcher 1 | . 4 . . 4 2 . . . . . Special Melee Weapon 1 | . . . 12 . . . . . . . Peak Build Rating 52 | 9 13 13 13 13 52 43 43 42 29 30 Average Rating 23 | 5 11 13 11 12 23 40 42 34 19 24 On Entrance 21 | . 9 13 13 13 13 35 43 43 27 29 Avg Prop Armor Cover (%) 3 | . . . . . . 3 . . . . Naked Turns . | . . . . . . . . . . . Heaviest Build 87 | 14 36 35 56 56 84 87 87 74 77 77 Greatest Support 120 | 40 40 40 40 40 80 120 120 120 20 20 Greatest Overweight (x) 3 | . . . 1 1 1 1 . 3 3 3 Average Overweight (x) . | . . . . 1 . . . . 2 3 Largest Inventory Capacity 20 | 8 15 15 20 20 20 20 20 20 20 20 Average Capacity 18 | 7 12 15 18 20 20 20 20 20 20 20 Most Carried 20 | 1 15 15 17 17 20 20 20 20 16 15 Average Carried 16 | . 11 15 15 16 19 19 19 17 15 13 Final Capacity 20 | 8 15 15 20 20 20 20 20 20 20 20 Final Carried 20 | 1 15 15 16 17 20 20 20 16 15 11 Class Distribution -------------------- 73% | Mutant 26% | Scavenger-Mutant Dominant Class ---------------- Mutant | -10/Materials Mutant | -10/Mines Mutant | -10/Exiles Mutant | -9/Mines Mutant | -8/Materials Scavenger-Mutant | -7/Factory Scavenger-Mutant | -7/Lower Caves Mutant | -7/Lower Caves Mutant | -7/Data Miner Mutant | -6/Proximity Caves Resources | -11 -10 -10 -10 -9 -8 -7 -7 -7 -7 -6 ----------- Run | Yrd Mat Min Exi Min Mat Fac Low Low Dat Pro Matter Collected 1844 | 261 199 . 40 86 288 357 428 149 . 36 Remotely . | . . . . . . . . . . . Salvage Created 2697 | 113 523 46 . 174 787 285 302 374 . 93 Parts 148 | 5 34 2 . 10 59 14 10 12 . 2 Haulers Intercepted 7 | . 2 . . . 2 3 . . . . Recyclers Shooed 2 | . 2 . . . . . . . . . Parts Field Recycled . | . . . . . . . . . . . Retrieved Matter . | . . . . . . . . . . . Parts Self-Destructed 21 | . . . . . . . 9 12 . . Prevented . | . . . . . . . . . . . Parts Restored . | . . . . . . . . . . . Kills | -11 -10 -10 -10 -9 -8 -7 -7 -7 -7 -6 ------- Run | Yrd Mat Min Exi Min Mat Fac Low Low Dat Pro Combat Hostiles Destroyed 59 | . 7 1 . 9 17 5 12 8 . . Guns 11 | . 2 . . . 6 . 1 2 . . Cannons 25 | . 4 1 . 5 . 5 6 4 . . AOE 22 | . 1 . . 4 10 . 5 2 . . Classes Destroyed 17 | 2 4 . . 2 6 1 1 . . 1 Worker 4 | . 2 . . . 2 . . . . . Builder 2 | . . . . . 1 1 . . . . Tunneler 3 | 1 1 . . 1 . . . . . . Hauler 7 | . 2 . . . 2 3 . . . . Recycler 4 | 1 2 . . . . 1 . . . . Operator 2 | . . . . . 2 . . . . . Watcher 2 | . 1 . . . 1 . . . . . Swarmer 17 | . . . . 3 7 . 7 . . . Grunt 28 | . 7 1 . 4 6 3 3 4 . . Brawler 3 | . . . . . . . 1 2 . . Sentry 4 | . . . . . 2 1 1 . . . Demolisher 2 | . . . . 2 . . . . . . Hunter 2 | . . . . . 1 . . 1 . . Programmer 2 | . . . . . . 1 . 1 . . Heavy 1 | . . . . . 1 . . . . . Zionite 1 | . . . . . 1 . . . . . Decomposer 1 | . . . . . . . 1 . . . Samaritan 2 | . . . . . . . . . . 2 Best Kill Streak 6 | 1 3 1 . 3 6 3 4 3 . . Combat Bots Only 6 | . 2 1 . 3 6 2 4 3 . . Max Kills in Single Turn 2 | 1 2 1 . 2 2 1 2 1 . 1 Gunslinging . | . . . . . . . . . . . Exploded 2 | . 1 . . 2 2 . 2 1 . . Melee . | . . . . . . . . . . . Uniques/NPCs Destroyed . | . . . . . . . . . . . Combat | -11 -10 -10 -10 -9 -8 -7 -7 -7 -7 -6 -------- Run | Yrd Mat Min Exi Min Mat Fac Low Low Dat Pro Hostile Shots Fired 472 | . 13 . . 20 76 44 168 86 . 65 Missed 134 | . 4 . . 5 16 23 59 13 . 14 Hits 338 | . 9 . . 15 60 21 109 73 . 51 Melee 5 | . . . . . . . . 5 . . Projectile 333 | . 9 . . 15 60 21 109 68 . 51 AOE 2 | . . . . 2 . . . . . . Critical Strikes 14 | . . . . . 5 . . 8 . 1 Actively Blocked 1 | . . . . . 1 . . . . . Damage Taken 6393 | . 134 21 . 238 1293 329 1126 1419 . 1833 Core 880 | . 45 . . 31 102 11 58 175 . 458 Absorbed by Shields . | . . . . . . . . . . . Redirected to Shielding 42 | . . . . . 42 . . . . . Ignored by Resistances 441 | . . . . . 57 . 193 24 . 167 Regen/Repaired (Parts) 167 | . 88 . . . 79 . . . . . Core Remaining (%) 83 | 100 . . . 69 81 . . . . . Volleys Fired 222 | 8 22 3 . 22 41 34 36 33 . 23 Largest 2 | 2 2 2 . 2 2 1 2 2 . 2 Hottest 160 | 40 120 105 . 120 90 50 125 160 . 160 Shots Fired 326 | 16 35 6 . 29 72 34 41 60 1 32 Gun 136 | 16 5 3 . . 64 . 5 22 . 21 Cannon 167 | . 27 3 . 26 . 34 33 32 1 11 Launcher 23 | . 3 . . 3 8 . 3 6 . . Special . | . . . . . . . . . . . Kinetic 90 | 16 . . . . . 34 28 . . 12 Thermal 105 | . 27 3 . 26 . . 5 32 1 11 Explosive 23 | . 3 . . 3 8 . 3 6 . . Electromagnetic 108 | . 5 3 . . 64 . 5 22 . 9 Robot Hit Streak 37 | 5 7 9 . 7 16 12 9 10 . 37 Robot Miss Streak 5 | 3 2 2 . 2 5 3 4 3 . 1 Penetration Max . | . . . . . . . . . . . Secondary Targets 1 | . . . . . 1 . . . . . Max Gunslinging Chain 1 | . . . . . 1 . . . . . Shots Hit Robots 231 | 9 20 4 4 17 57 26 24 39 . 31 Core Hits 129 | 3 21 3 . 11 42 8 14 18 . 9 Critical Kills . | . . . . . . . . . . . Critical Parts Destroyed . | . . . . . . . . . . . Critical Strikes 6 | . . . . . . 5 1 . . . Blast 6 | . . . . . . 5 1 . . . Melee Attacks 4 | . . . 4 . . . . . . . Impact . | . . . . . . . . . . . Slashing . | . . . . . . . . . . . Piercing . | . . . . . . . . . . . Sneak Attacks 4 | . . . 4 . . . . . . . Combat Hostiles . | . . . . . . . . . . . Follow-up Attacks . | . . . . . . . . . . . Damage Inflicted 8794 | 99 560 89 . 690 2161 1719 1446 1320 . 710 Guns 1906 | 99 58 36 . . 993 . 92 245 . 383 Cannons 4099 | . 315 53 . 284 . 1709 914 555 . 269 Explosions 2670 | . 135 . . 368 1164 . 425 520 . 58 Melee . | . . . . . . . . . . . Ramming 119 | . 52 . . 38 4 10 15 . . . Kinetic 2914 | 99 . . . . . 1709 839 . . 267 Thermal 2060 | . 315 53 . 284 451 . 75 555 . 327 Explosive 2161 | . 135 . . 368 713 . 425 520 . . Electromagnetic 1540 | . 58 36 . . 993 . 92 245 . 116 Impact . | . . . . . . . . . . . Slashing . | . . . . . . . . . . . Piercing . | . . . . . . . . . . . Highest Corruption 36 | . . . . . 36 . . 9 9 18 Average Corruption 9 | . . . . . 22 . . 8 9 10 Corruption Purged . | . . . . . . . . . . . Corruption Blocked . | . . . . . . . . . . . Effects 50 | . . . . . 2 . . 31 11 6 Message Errors 9 | . . . . . . . . 8 1 . Matter Fused 13 | . . . . . 1 . . 8 3 1 Heat Flow Errors 4 | . . . . . . . . 1 2 1 Energy Discharges 10 | . . . . . . . . 6 3 1 Parts Rejected 1 | . . . . . . . . . . 1 Parts Fused 1 | . . . . . . . . 1 . . Data Loss (minor) 3 | . . . . . . . . 2 . 1 Data Loss (major) 3 | . . . . . . . . 2 1 . Misfires 3 | . . . . . 1 . . 1 1 . Alerts 2 | . . . . . . . . 1 . 1 Weapon Failures 1 | . . . . . . . . 1 . . Overload Shots . | . . . . . . . . . . . Overflow Damage 462 | . . . . 24 86 205 91 30 . 26 Projectiles 320 | . . . . . . 205 60 29 . 26 Explosions 142 | . . . . 24 86 . 31 1 . . Melee . | . . . . . . . . . . . Knockbacks 12 | . . . . 1 . 5 6 . . . Impact 1 | . . . . 1 . . . . . . Kinetic 11 | . . . . . . 5 6 . . . Secondary . | . . . . . . . . . . . Self-Inflicted Damage 360 | . . . . 12 57 . . 230 . 61 Shots 10 | . . . . 1 3 . . 5 . 1 Rammed 13 | . 6 . . 5 . 1 1 . . . Targets Rammed 17 | . 8 . . 5 1 2 1 . . . Kicked . | . . . . . . . . . . . Crushed 4 | . 2 . . . 1 1 . . . . Highest Temperature 258 | . 22 3 . 29 16 226 207 143 209 258 Average Temperature 56 | . 14 3 . 19 6 76 45 39 100 70 Received Heat Transfer 1209 | . 75 9 . 69 243 108 225 324 . 156 Siege Activations . | . . . . . . . . . . . Martial Activations . | . . . . . . . . . . . Shielding Activations . | . . . . . . . . . . . Robots Disrupted . | . . . . . . . . . . . Combat Hostiles . | . . . . . . . . . . . Robots Corrupted 1 | . . . . . 1 . . . . . Combat Hostiles 1 | . . . . . 1 . . . . . Parts Fried 10 | . . . . . 8 . 1 1 . . Impact Corruptions . | . . . . . . . . . . . Robots Melted . | . . . . . . . . . . . Combat Hostiles . | . . . . . . . . . . . Parts Melted 5 | . . . . 2 . . . 3 . . Heat Transferred 3419 | . 666 111 . 592 350 . 150 1000 . 550 Parts Sabotaged . | . . . . . . . . . . . Parts Stolen . | . . . . . . . . . . . Parts Stripped . | . . . . . . . . . . . Power Chain Reactions 4 | . . . . . 3 . . . . 1 Alert | -11 -10 -10 -10 -9 -8 -7 -7 -7 -7 -6 ------- Run | Yrd Mat Min Exi Min Mat Fac Low Low Dat Pro Maximum Alert Level 2 | . . . . . 2 . . . . . Low Security (%) 88 | 100 100 100 . 100 23 100 . . . . Level 1 10 | . . . . . 73 . . . . . Level 2 . | . . . . . 3 . . . . . Level 3 . | . . . . . . . . . . . Level 4 . | . . . . . . . . . . . Level 5 . | . . . . . . . . . . . High Security . | . . . . . . . . . . . Max Security . | . . . . . . . . . . . Peak Influence 412 | 5 92 53 . 85 412 178 . . . . Initial 178 | . . 7 . . 27 178 . . . . Average 59 | . 27 3 . 14 263 61 . . . . Influence Increases 2231 | 10 325 53 . 322 796 210 300 215 . . Destroy 0b10 Robot/C 1260 | . 140 40 . 220 360 100 240 160 . . Destroy 0b10 Robot/NC 125 | 10 40 . . 5 45 25 . . . . Destroy Leader 300 | . 46 10 . 40 88 46 30 40 . . Allied During Kill 39 | . . 3 . 19 17 . . . . . Successful Hack 61 | . 43 . . . 18 . . . . . Disable Machine 105 | . 15 . . . 60 30 . . . . Destroy Structure 161 | . 26 . . 23 103 9 . . . . Lose Combat Pursuer 180 | . 15 . . 15 105 . 30 15 . . Influence Decreases 2231 | 10 306 72 . 250 475 572 331 215 . . Entered New Map 285 | . . 12 . . 45 215 13 . . . Time Decay 1766 | 10 306 60 . 230 350 357 308 145 . . Lost Part 140 | . . . . . 60 . 10 70 . . Lost Ally 40 | . . . . 20 20 . . . . . Squads Dispatched 6 | . 1 . . . 2 3 . . . . Investigation 2 | . 1 . . . . 1 . . . . Extermination 1 | . . . . . . 1 . . . . Reinforcement 3 | . . . . . 2 1 . . . . Assault . | . . . . . . . . . . . Garrison . | . . . . . . . . . . . Intercept . | . . . . . . . . . . . Searches Triggered . | . . . . . . . . . . . Construction Impeded . | . . . . . . . . . . . Haulers Reinforced 1 | . . . . . . 1 . . . . Active Scanning Responses . | . . . . . . . . . . . Cargo Convoy Interrupts . | . . . . . . . . . . . Stealth | -11 -10 -10 -10 -9 -8 -7 -7 -7 -7 -6 --------- Run | Yrd Mat Min Exi Min Mat Fac Low Low Dat Pro Distress Signals 2 | . 1 . . . . 1 . . . . Communications Jammed . | . . . . . . . . . . . Distress Signals . | . . . . . . . . . . . Times Spotted 79 | . 16 2 . 9 21 6 15 9 . 1 Peak Tracking Total 4 | . 4 1 . 3 4 2 4 4 . 1 Tactical Retreats 9 | . 1 . . 1 4 . 2 1 . . Traps | -11 -10 -10 -10 -9 -8 -7 -7 -7 -7 -6 ------- Run | Yrd Mat Min Exi Min Mat Fac Low Low Dat Pro Traps Triggered 2 | . 1 . . . . 1 . . . . Indirectly . | . . . . . . . . . . . Trap Hack Attempts . | . . . . . . . . . . . Triggered . | . . . . . . . . . . . Disarmed . | . . . . . . . . . . . Reprogrammed . | . . . . . . . . . . . Reused . | . . . . . . . . . . . Traps Extracted . | . . . . . . . . . . . Installed . | . . . . . . . . . . . Triggered . | . . . . . . . . . . . Machines | -11 -10 -10 -10 -9 -8 -7 -7 -7 -7 -6 ---------- Run | Yrd Mat Min Exi Min Mat Fac Low Low Dat Pro Machines Disabled 7 | . 1 . . . 4 2 . . . . Max in Single Turn 2 | . 1 . . . 2 1 . . . . Machines Repaired . | . . . . . . . . . . . Machines Dismantled . | . . . . . . . . . . . Machines Sabotaged . | . . . . . . . . . . . Overloaded Fab Kills . | . . . . . . . . . . . Hacking | -11 -10 -10 -10 -9 -8 -7 -7 -7 -7 -6 --------- Run | Yrd Mat Min Exi Min Mat Fac Low Low Dat Pro Machines Accessed 18 | . 8 . 2 . 3 1 1 . 3 . Terminals 9 | . 7 . . . 2 . . . . . Fabricators 1 | . . . . . . 1 . . . . Repair Stations 2 | . 1 . . . 1 . . . . . Recycling Units . | . . . . . . . . . . . Scanalyzers . | . . . . . . . . . . . Garrison Access . | . . . . . . . . . . . Total Hacks 66 | . 27 . 2 . 11 3 1 . 22 . Successful 47 | . 15 . 2 . 7 . 1 . 22 . Failed 18 | . 12 . . . 3 3 . . . . Catastrophic 3 | . 2 . . . . 1 . . . . Database Lockouts 1 | . . . . . 1 . . . . . Manual 25 | . 20 . 1 . 4 . . . . . Terminals 31 | . 22 . . . 9 . . . . . Fabricators 3 | . . . . . . 3 . . . . Repair Stations 7 | . 5 . . . 2 . . . . . Recycling Units . | . . . . . . . . . . . Scanalyzers . | . . . . . . . . . . . Garrison Access . | . . . . . . . . . . . Terminal Hacks 37 | . 9 . 2 . 3 . 1 . 22 . Record 3 | . . . 1 . . . . . 2 . Part Schematic 13 | . 1 . . . . . . . 12 . Robot Schematic 5 | . . . . . . . . . 5 . Robot Analysis 8 | . 7 . . . 1 . . . . . Prototype ID Bank 3 | . . . . . . . . . 3 . Open Door 1 | . . . . . . . 1 . . . Locate Traps 2 | . . . . . 2 . . . . . Zone Layout 1 | . 1 . . . . . . . . . Proto ID Catalog 1 | . . . 1 . . . . . . . Fabricator Hacks . | . . . . . . . . . . . Repair Station Hacks 6 | . 4 . . . 2 . . . . . Scan Component 3 | . 2 . . . 1 . . . . . Repair 3 | . 2 . . . 1 . . . . . Recycling Unit Hacks . | . . . . . . . . . . . Scanalyzer . | . . . . . . . . . . . Garrison Access Hacks . | . . . . . . . . . . . Unauthorized Hacks 4 | . 2 . . . 2 . . . . . Terminals 4 | . 2 . . . 2 . . . . . Botnet 4 | . 2 . . . 2 . . . . . Fabricators . | . . . . . . . . . . . Repair Stations . | . . . . . . . . . . . Recycling Units . | . . . . . . . . . . . Scanalyzers . | . . . . . . . . . . . Garrison Access . | . . . . . . . . . . . Data Cores Recovered . | . . . . . . . . . . . Used . | . . . . . . . . . . . Hacking Detections 12 | . 8 . . . 3 1 . . . . Full Trace Events 2 | . 1 . . . . 1 . . . . Feedback Events . | . . . . . . . . . . . Feedback Blocked . | . . . . . . . . . . . Robot Schematics Acquired 5 | . . . . . . . . . 5 . Robots Built . | . . . . . . . . . . . Authchips . | . . . . . . . . . . . Time . | . . . . . . . . . . . Total Robot Build Rating . | . . . . . . . . . . . Part Schematics Acquired 13 | . 1 . . . . . . . 12 . Parts Built . | . . . . . . . . . . . Authchips . | . . . . . . . . . . . Time . | . . . . . . . . . . . Total Part Build Rating . | . . . . . . . . . . . Part Studies Acquired . | . . . . . . . . . . . Parts Repaired 3 | . 2 . . . 1 . . . . . Time 78 | . 52 . . . 26 . . . . . Parts Recycled . | . . . . . . . . . . . Recycled Matter . | . . . . . . . . . . . Retrieved Matter . | . . . . . . . . . . . Retrieved Components . | . . . . . . . . . . . Parts Scanalyzed . | . . . . . . . . . . . Part Schematics Acquired . | . . . . . . . . . . . Parts Damaged . | . . . . . . . . . . . Bothacking | -11 -10 -10 -10 -9 -8 -7 -7 -7 -7 -6 ------------ Run | Yrd Mat Min Exi Min Mat Fac Low Low Dat Pro Used RIF Installer . | . . . . . . . . . . . Robots Hacked 4 | . . . 4 . . . . . . . Non-combat 3 | . . . 3 . . . . . . . Combat 1 | . . . 1 . . . . . . . Robot Hacks Applied 4 | . . . 4 . . . . . . . parse_system 4 | . . . 4 . . . . . . . Relay Couplers Released . | . . . . . . . . . . . Fabnet Peak Effective % . | . . . . . . . . . . . Robots Rewired . | . . . . . . . . . . . Allies Hacked . | . . . . . . . . . . . Hacks Repelled . | . . . . . . . . . . . Allies | -11 -10 -10 -10 -9 -8 -7 -7 -7 -7 -6 -------- Run | Yrd Mat Min Exi Min Mat Fac Low Low Dat Pro Total Allies 6 | . . 1 . 5 . . . . . . Largest Group 3 | . . 1 . 3 2 . . . . . Highest-Rated Group 58 | . . 31 . 58 27 . . . . . Highest-Rated Ally 31 | . . 31 . 31 16 . . . . . Total Orders . | . . . . . . . . . . . Ally Attacks 29 | . . 4 . 13 12 . . . . . Total Damage 391 | . . 85 . 188 118 . . . . . Kills 5 | . . 1 . 2 2 . . . . . Allies Corrupted . | . . . . . . . . . . . Allies Melted . | . . . . . . . . . . . Intel | -11 -10 -10 -10 -9 -8 -7 -7 -7 -7 -6 ------- Run | Yrd Mat Min Exi Min Mat Fac Low Low Dat Pro Active Infowar (turns) 125 | 21 97 . . . 7 . . . . . A.S.S. 7 | . . . . . 7 . . . . . Terrain 118 | 21 97 . . . . . . . . . Robot Analysis Total 7 | . 6 . . . 1 . . . . . Derelict Logs Recovered 5 | . . 2 . 1 . . . 2 . . Drone Launches . | . . . . . . . . . . . Drone Recoveries . | . . . . . . . . . . . Exploration | -11 -10 -10 -10 -9 -8 -7 -7 -7 -7 -6 ------------- Run | Yrd Mat Min Exi Min Mat Fac Low Low Dat Pro Turns Passed 9333 | 150 1057 828 1066 1712 794 994 1437 840 297 158 Spaces Moved 4379 | 74 567 512 517 623 356 516 802 303 88 21 Core 2 | 2 . . . . . . . . . . Treads 4377 | 72 567 512 517 623 356 516 802 303 88 21 Legs . | . . . . . . . . . . . Wheels . | . . . . . . . . . . . Hover . | . . . . . . . . . . . Flight . | . . . . . . . . . . . Fastest Speed 50 | 50 160 160 160 240 160 165 165 163 330 410 Average Speed 189 | 157 160 160 202 240 167 166 165 242 336 410 Slowest Speed 410 | 160 160 160 240 240 247 247 165 410 410 410 Overloaded Moves . | . . . . . . . . . . . Propulsion Burnouts . | . . . . . . . . . . . Robots Hopped . | . . . . . . . . . . . Potential Cave-ins 2 | . 2 . . . . . . . . . Cave-ins Triggered 2 | . . . . . . . . . . 2 Exploration Rate (%) 56 | 5 96 94 71 97 29 12 86 54 68 5 Regions Visited 10 Branch Regions 7 Pre-discovered Areas 3 | . . . 1 . . . . 1 1 . Known Exits Taken 2 | . . . . . 1 1 . . . . Unknown Exits Taken 8 | 1 1 1 1 1 . . 1 1 1 . Scrap Searched 6 | . . 1 . 2 . . 2 1 . . Spaces Dug 30 | . . . . . 20 . 10 . . . Terrain Destroyed 260 | . 24 . . 36 106 8 42 40 . 4 Melee . | . . . . . . . . . . . Projectile 22 | . . . . . . 8 14 . . . AOE 238 | . 24 . . 36 106 . 28 40 . 4 Terrain Rammed . | . . . . . . . . . . . Walls Destroyed . | . . . . . . . . . . . Machines Disabled . | . . . . . . . . . . . Actions | -11 -10 -10 -10 -9 -8 -7 -7 -7 -7 -6 --------- Run | Yrd Mat Min Exi Min Mat Fac Low Low Dat Pro Total 5071 | 89 678 515 538 803 481 604 861 349 92 61 Wait 271 | . 40 1 10 149 30 14 10 6 . 11 Move 4369 | 73 566 511 516 622 355 515 801 302 87 21 Hop . | . . . . . . . . . . . Pick Up 49 | . 21 . 2 1 10 12 3 . . . Fast Attach 30 | 7 1 . . . 13 4 1 . 2 2 Attach 25 | . 2 . 1 . 8 2 3 4 1 4 Detach 6 | . . . . . 5 . 1 . . . Swap 38 | 1 9 . 3 4 8 6 3 4 . . Drop 40 | . 9 . 2 . 10 15 2 . 2 . Fire 222 | 8 22 3 . 22 41 34 36 33 . 23 Melee 4 | . . . 4 . . . . . . . Ram . | . . . . . . . . . . . Kick . | . . . . . . . . . . . Crush 17 | . 8 . . 5 1 2 1 . . . Escape Stasis . | . . . . . . . . . . . Rewire . | . . . . . . . . . . . Trap . | . . . . . . . . . . . Miscellaneous . | . . . . . . . . . . . Route ------- -11/Scrapyard -10/Materials (discovered 6 exits: [*Mat x3] / [*Min x2] / [*Sub]) -10/Mines (discovered 3 exits: [*Mat x2] / *Exi) -10/Exiles -9/Mines (discovered 2 exits: *Mat x2) -8/Materials (discovered 2 exits: *Fac x2) -7/Factory -7/Lower Caves -7/Lower Caves -7/Data Miner -6/Proximity Caves History --------- Turn | Location | Event 17 | -11/Scrapyard | Discovered new exit (range 15) 151 | -11/Scrapyard | Entered Materials 309 | -10/Materials | Build established: Mutant 425 | -10/Materials | Discovered new exit (range 14) 679 | -10/Materials | Discovered new exit (range 16) 715 | -10/Materials | Discovered new exit (range 10) 780 | -10/Materials | Discovered new exit (range 12) 887 | -10/Materials | Discovered new exit (range 3) 964 | -10/Materials | Repaired Lgt. Treads 991 | -10/Materials | Repaired Lgt. Treads 1077 | -10/Materials | Discovered new exit (range 16) 1208 | -10/Materials | Entered Mines 1268 | -10/Mines | Met a Derelict bent on vengeance 1293 | -10/Mines | Learned Materials terminal intel 1363 | -10/Mines | Received a Rocket Launcher from a helpful Derelict 1456 | -10/Mines | Received a Mining Laser from a helpful Derelict 1548 | -10/Mines | Learned location of 1 exit from Materials 1596 | -10/Mines | Discovered new exit (range 11) 1900 | -10/Mines | Found a hidden stash of uninstalled traps 1958 | -10/Mines | Discovered new exit (range 9) 2026 | -10/Mines | Deemed a non-threat by the Exiles lab entrance 2028 | -10/Mines | Discovered new exit (range 5) 2036 | -10/Mines | Entered Exiles 2073 | -10/Exiles | Met 8R-AWN 2118 | -10/Exiles | Met EX-HEX 2261 | -10/Exiles | Met EX-DEC 2515 | -10/Exiles | Learned location of Zion (-6) 2577 | -10/Exiles | Met EX-BIN 2701 | -10/Exiles | Aligned with FarCom system 2704 | -10/Exiles | Given EX-Vault access code 2759 | -10/Exiles | Opened EX-Vault 2776 | -10/Exiles | Found Supersonic Drone Bay 2822 | -10/Exiles | Warned to stay clear of 0b10 Research branches 3075 | -10/Exiles | Discovered new exit (range 12) 3102 | -10/Exiles | Left Exiles lab with Supersonic Drone Bay 3102 | -10/Exiles | Entered Mines 3152 | -9/Mines | Assembled infested the area 3157 | -9/Mines | Assisted by a Guerilla fighting off Assembled 3955 | -9/Mines | Assisted by bots powering up and referring to "LRC-V3" 4107 | -9/Mines | Learned Materials security intel 4162 | -9/Mines | Discovered new exit (range 5) 4360 | -9/Mines | Discovered new exit (range 5) 4814 | -9/Mines | Entered Materials 4814 | -8/Materials | Accompanied by 2 allies 4814 | -8/Materials | Evolved 4 slots: Propulsion x2, Utility x2 4815 | -8/Materials | Identified exit to Factory 4817 | -8/Materials | Loaded intel: 12 terminal locations 4900 | -8/Materials | Repaired Lgt. Treads? 4913 | -8/Materials | Central database locked down 5503 | -8/Materials | Discovered exit to Factory (range 15) 5559 | -8/Materials | System corruption reached 10% 5568 | -8/Materials | Lost 5 parts (1p2n2u) 5585 | -8/Materials | System corruption reached 30% 5592 | -8/Materials | Found Corrupted Prototype Device 5592 | -8/Materials | Identified Active Sensor Suite 5608 | -8/Materials | Entered Factory 5608 | -7/Factory | Evolved 2 slots: Propulsion x2 5842 | -7/Factory | Build established: Scavenger-Mutant 5851 | -7/Factory | Discovered new exit (range 15) 5935 | -7/Factory | Identified exit to Lower Caves 6602 | -7/Factory | Entered Lower Caves 7198 | -7/Lower Caves | Encountered a Warlord checkpoint 7425 | -7/Lower Caves | Attracted the attention of an 0b10 checkpoint 7774 | -7/Lower Caves | Discovered new exit (range 5) 7929 | -7/Lower Caves | Spotted B-75 Beast 8039 | -7/Lower Caves | Entered another Lower Caves area 8328 | -7/Lower Caves | Build established: Mutant 8349 | -7/Lower Caves | Lost 5 parts (4n1u) 8564 | -7/Lower Caves | Learned location of 1 exit from Factory 8593 | -7/Lower Caves | Discovered new exit (range 14) 8647 | -7/Lower Caves | Lost 4 parts (1p2n1u) 8879 | -7/Lower Caves | Entered Data Miner 8881 | -7/Data Miner | Discovered new exit (range 6) 8943 | -7/Data Miner | Met Data Miner 8999 | -7/Data Miner | Learned location of Section 7 (-2) 8999 | -7/Data Miner | Acquired the access code to Warlord's prototype stash 9045 | -7/Data Miner | Received God Mode back door access code from Data Miner 9176 | -7/Data Miner | Entered Proximity Caves 9243 | -6/Proximity Caves | Spotted B-75 Beast 9289 | -6/Proximity Caves | Crushed by falling debris 9289 | -6/Proximity Caves | Core integrity fell below 50% 9289 | -6/Proximity Caves | System corruption reached 10% 9309 | -6/Proximity Caves | Core integrity fell below 20% 9333 | -6/Proximity Caves | Crushed by falling debris 9334 | -6/Proximity Caves | Destroyed by B-75 Beast with Magnetic Acceleration Cannon Last Messages --------------- 09289_ Crushed by falling debris. 09289_ Imp. Cooling System destroyed. 09289_ System corrupted by crushing effect (+3). 09289_ Plasma Cannon destroyed. 09289_ System corrupted by crushing effect (+3). 09291_ System corrupted: Imp. EM Shotgun rejected. 09292_ Reactive Plating destroyed. 09302_ Acquired Imp. EM Shotgun. 09304_ XN-38Z(k) breaks down the debris. 09306_ Hvy. Machine Gun destroyed. 09308_ Chain reaction triggered in Rnf. Deuterium Engine. 09317_ Knocked back. 09321_ XN-38Z(k) breaks down the debris. 09325_ System corrupted: Heat flow error (+287). 09333_ The unstable cave ceiling collapses. 09333_ Crushed by falling debris. 09333_ Lightning Gun destroyed. 09333_ System corrupted by crushing effect (+3). 09334_ Reactive Plating destroyed. 09334_ Imp. EM Shotgun destroyed. Map ----- +----------------------------------------------------+ | ?????????????????????????????????????????????????? | | ?????????????????????????????????????????????????? | | ?????????????????????????????????????????????????? | | ?????????????????????????????????????????????????? | | ?????????????????????????????????????????????????? | | ?????????????????????????????????????????????????? | | ?????????????????????????????????????????????????? | | ?????????????????????????????????????????????????? | | ?????????????????????????????????????????????????? | | ?????????????????????????????????????????????????? | | ?????????????????????????????????????????????????? | | ?????????????????????????????????????????????????? | | ?????????????????????????????????????????????????? | | ?????????????????????????????????????????????????? | | ?????????????????????????????????????????????????? | | ?????????????????????????????????????????????????? | | ?????????????????????????????????????????????????? | | ?????????????????????????????????????????????????? | | ?????????????????????????????????????????????????? | | ?????????????????????????????????????????????????? | | ???????????????????????????##????????????????????? | | ?????????????????#####????? #?????###????????????? | | ?????????????????# #????# #??? #????????????? | | ???????????????### #?####;%## ###??????????? | | ???????????????# ####;;#% ; ???????? | | ???????????????# ### %@ ???????? | | ??????????????#; ! * %% BB #???????? | | ??????????????# k BB % #????????? | | ??????????????# ;;;% #????????? | | ??????????????#; % #;% #????????? | | ??????????????## ##; ## ?????????? | | ???????????????# #### ##??; ##??? #?????????? | | ???????????????#% #??# #???# ##???????????????? | | ???????????????# ###??# #???? ????????????????? | | ???????????????####???? ?????##???????????????? | | ??????????????????????? ?????????????????????? | | ??????????????????????? #????????????????????? | | ?????????????????????? ????????????????????? | | ?????????????????????? ???????????????????? | | ?????????????????????? ###??????????????????? | | ??????????????????????? #????????????????????? | | ????????????????????????? ???????????????????????? | | ?????????????????????????????????????????????????? | | ?????????????????????????????????????????????????? | | ?????????????????????????????????????????????????? | | ?????????????????????????????????????????????????? | | ?????????????????????????????????????????????????? | | ?????????????????????????????????????????????????? | | ?????????????????????????????????????????????????? | | ?????????????????????????????????????????????????? | +----------------------------------------------------+ Best States ------------- Heat Dissipation 61 Energy Generation 18 Energy Capacity 310 Matter Stores 300 Matter Capacity 300 Sight Range 16 Terrain Scan Range 16 Terrain Scan Density 10 Armor Coverage 750 Resistance: KI 20 Resistance: TH 10 Weapon Shielding 33 Evasion (%) 40 Recoil Reduction 6 Kinecelleration 30 Item Schematics ----------------- Huge Storage Unit | -10/Materials | Hacked Combat Drone Bay | -7/Data Miner | Free Lgt. Regenerative Plating | -7/Data Miner | Free Biomechanical Wings | -7/Data Miner | Free Gravity Neutralizer | -7/Data Miner | Free Shock Maul | -7/Data Miner | Free Arm. Medium Treads | -7/Data Miner | Free Imp. Coolant Injector | -7/Data Miner | Free Lance | -7/Data Miner | Free Hvy. Phase Cannon | -7/Data Miner | Free Imp. Medium Treads | -7/Data Miner | Free Hyp. Gauss Cannon | -7/Data Miner | Free Adv. Hardlight Generator | -7/Data Miner | Free Robot Schematics ------------------ S-27 Virus | -7/Data Miner | Free E-15 Imp | -7/Data Miner | Free M-28 Smith | -7/Data Miner | Free R-10 Processor | -7/Data Miner | Free C-35 Carver | -7/Data Miner | Free Fabricated ------------ Nothing Repaired ---------- Lgt. Treads | 50% | -10/Materials Lgt. Treads | 86% | -10/Materials Lgt. Treads | 43% | -8/Materials Studied --------- None Alien Tech Used ----------------- None Achievements -------------- None Challenges ------------ None Game ------ Seed ShiftSalvageShovel Manual? 0 Play Time 00:49:40 Cumulative 435.5 hours Start 2025.12.18 @ 18:51:53 End 2025.12.19 @ 18:41:27 Sessions 3 Manual Loads 0 Difficulty Rogue Special Mode None Game No. 423 Rogue 419 Adventurer 3 Explorer 1 Win Type - Total 7 Types 6/0/1/0/0/0/0/0/0/0 Lore% 86 Gallery% 80 Achievement% 70 Wizard Run 0 Options --------- Layout 0 ASCII 0 Keyboard 0 Movement Mouse Keybinds 0 Fullscreen 2 Font 18/SmallcapsGlow Map View 76x50 Zoom Use 0% Tactical HUD 1 Map Filters NONE Filters NONE Steam 1 RUN: 12b23803-370a-4094-8904-08d7e89f5875